fUSD/lending_fUSD_20260130
["ID","MTS","AMOUNT","RATE_DAILY","PERIOD"]
[404039568,1769777251107,-1321.4,0.00040839,120]
[404039569,1769777251151,-171.71413,0.00040888,30]
[404039570,1769777251195,-154.5,0.00040921,120]
[404039571,1769777251237,-210.0,0.0004093,30]
[404039572,1769777251281,-1000.0,0.00041,120]
[404039573,1769777251326,-1500.0,0.00041,120]
[404039574,1769777251374,-2215.255804,0.00041,120]
[404039575,1769777251424,-755.0,0.00041,120]
[404039576,1769777251474,-250.0,0.00041,45]
[404039577,1769777251528,-250.0,0.00041,45]
[404039578,1769777251580,-247.85,0.00041,120]
[404039579,1769777251631,-330.0,0.00041,45]
[404039580,1769777251680,-1000.0,0.00041,120]
[404039581,1769777251728,-1000.0,0.00041,120]
[404039582,1769777252009,-150.0,0.00041,120]
[404039583,1769777252056,-633.55854297,0.00041,30]
[404039584,1769777252101,-500.0,0.00041,79]
[404039585,1769777252146,-601.56167756,0.00041,30]
[404039586,1769777252195,-154.05217769,0.00041,120]
[404039587,1769777252239,-250.0,0.00041,45]
[404039588,1769777252283,-250.0,0.00041,45]
[404039589,1769777252327,-250.0,0.00041,45]
[404039590,1769777252374,-6881.98,0.00041,30]
[404039591,1769777252418,-1750.90986373,0.00041,30]
[404039592,1769777252467,-1000.0,0.00041,30]
[404039593,1769777252514,-1000.0,0.00041,120]
[404039594,1769777252563,-200.0,0.00041,120]
[404039595,1769777252613,-4800.17363083,0.00041,120]
[404039596,1769777252658,-3928.44348774,0.00041,30]
[404039597,1769777252705,-163.9587185,0.00041,120]
[404039598,1769777252749,-253.0,0.00041,34]
[404039599,1769777252799,-1029.07256834,0.00041,30]
[404039600,1769777252845,-154.5,0.00041021,120]
[404039601,1769777252896,-511.7,0.0004104,120]
[404039602,1769777252942,-697.82575382,0.00041068,120]
[404039603,1769777252989,-674.24996805,0.00041068,120]
[404039604,1769777253037,-792.406754,0.00041068,120]
[404039605,1769777253083,-283.95,0.00041068,120]
[404039606,1769777253129,-521.54114797,0.00041068,120]
[404039607,1769777253173,-211.12406878,0.00041068,120]
[404039608,1769777253217,-1680.7,0.00041068,120]
[404039609,1769777253265,-1840.3,0.00041068,120]
[404039610,1769777253313,-243.75432067,0.00041068,120]
[404039611,1769777253362,-2065.5,0.00041068,120]
[404039612,1769777253411,-1018.0,0.00041068,120]
[404039613,1769777253460,-410.15,0.00041068,120]
[404039614,1769777253506,-646.42795528,0.00041068,120]
[404039615,1769777253553,-588.75,0.00041068,120]
[404039616,1769777253603,-473.1,0.00041068,120]
[404039617,1769777253651,-171.71413,0.00041088,30]
[404039618,1769777253700,-500.0,0.00041095,120]
[404039619,1769777253747,-500.0,0.00041095,120]
[404039620,1769777253794,-500.0,0.00041095,120]
[404039621,1769777253841,-500.0,0.00041095,120]
[404039622,1769777253888,-500.0,0.00041095,120]
[404039623,1769777253935,-500.0,0.00041095,120]
[404039624,1769777253986,-500.0,0.00041095,120]
[404039625,1769777254033,-500.0,0.00041095,120]
[404039626,1769777254080,-378.33992773,0.00041095,120]
[404039627,1769777254125,-799.0,0.00041096,120]
[404039628,1769777254172,-522.59,0.00041096,120]
[404039629,1769777254217,-343.84,0.00041096,120]
[404039630,1769777254263,-500.0,0.00041096,120]
[404039631,1769777254313,-593.01486534,0.000411,120]
[404039632,1769777254368,-593.01486534,0.000411,120]
[404039633,1769777254420,-593.01486534,0.000411,120]
[404039634,1769777254471,-593.01486534,0.000411,120]
[404039635,1769777254522,-593.01486534,0.000411,120]
[404039636,1769777254572,-593.01486534,0.000411,120]
[404039637,1769777254622,-593.01486534,0.000411,120]
[404039638,1769777254674,-593.01486534,0.000411,120]
[404039639,1769777254725,-593.01486534,0.000411,120]
[404039640,1769777254773,-593.01486534,0.000411,120]
[404039641,1769777254822,-593.01486534,0.000411,120]
[404039642,1769777254871,-593.01486534,0.000411,120]
[404039643,1769777254923,-593.01486534,0.000411,120]
[404039644,1769777254972,-593.01486534,0.000411,120]
[404039645,1769777255023,-593.01486534,0.000411,120]
[404039646,1769777255074,-593.01486534,0.000411,120]
[404039647,1769777255125,-593.01486534,0.000411,120]
[404039648,1769777255174,-593.01486534,0.000411,120]
[404039649,1769777255221,-593.01486534,0.000411,120]
[404039650,1769777255267,-593.01,0.000411,120]
[404039651,1769777255315,-1383.70135246,0.000411,120]
[404039652,1769777255367,-1383.70135246,0.000411,120]
[404039653,1769777255418,-1383.70135246,0.000411,120]
[404039654,1769777255467,-1383.70135246,0.000411,120]
[404039655,1769777255515,-1383.70135246,0.000411,120]
[404039656,1769777255564,-1383.70135246,0.000411,120]
[404039657,1769777255612,-1383.70135246,0.000411,120]
[404039658,1769777255660,-1383.70135246,0.000411,120]
[404039659,1769777255708,-1383.70135246,0.000411,120]
[404039660,1769777255755,-1383.70135246,0.000411,120]
[404039661,1769777256038,-1383.70135246,0.000411,120]
[404039662,1769777256086,-1383.70135246,0.000411,120]
[404039663,1769777256135,-1383.70135246,0.000411,120]
[404039664,1769777256182,-1383.70135246,0.000411,120]
[404039665,1769777256230,-1383.70135246,0.000411,120]
[404039666,1769777256278,-1383.70135246,0.000411,120]
[404039667,1769777256325,-1383.70135246,0.000411,120]
[404039668,1769777256373,-1383.70135246,0.000411,120]
[404039669,1769777256419,-1383.70135246,0.000411,120]
[404039670,1769777256468,-1383.7,0.000411,120]
[404039671,1769777256515,-154.5,0.00041121,120]
[404039672,1769777256563,-639.91179185,0.00041151,120]
[404039673,1769777256611,-151.0,0.000412,120]
[404039674,1769777256655,-155.32866365,0.000412,30]
[404039675,1769777256703,-154.5,0.00041221,120]
[404039676,1769777256750,-171.71413,0.00041288,30]
[404039677,1769777256797,-1321.4,0.00041316,120]
[404039678,1769777256843,-154.5,0.00041321,120]
[404039679,1769777256886,-800.0,0.00041369,120]
[404039680,1769777256928,-800.0,0.00041369,120]
[404039681,1769777256971,-800.0,0.00041369,120]
[404039682,1769777257019,-800.0,0.00041369,120]
[404039683,1769777257064,-800.0,0.00041369,120]
[404039684,1769777257110,-800.0,0.00041369,120]
[404039685,1769777257154,-800.0,0.00041369,120]
[404039686,1769777257197,-563.21656297,0.00041369,120]
[404039687,1769777257241,-300.0,0.000414,120]
[404039688,1769777257283,-1086.95439,0.00041414,120]
[404039689,1769777257328,-154.5,0.00041421,120]
[404039690,1769777257371,-171.71413,0.00041488,30]
[404039691,1769777257416,-250.0,0.000415,45]
[404039692,1769777257463,-250.0,0.000415,45]
[404039693,1769777257507,-250.0,0.000415,45]
[404039694,1769777257559,-153.0,0.000415,120]
[404039695,1769777257610,-1000.0,0.000415,50]
[404039696,1769777257659,-426.0999,0.000415,30]
[404039697,1769777257707,-250.0,0.000415,45]
[404039698,1769777257751,-250.0,0.000415,45]
[404039699,1769777257796,-426.0999,0.000415,30]
[404039700,1769777257841,-154.5,0.00041521,120]
[404039701,1769777257886,-154.5,0.00041621,120]
[404039702,1769777257930,-1025.09,0.00041643,120]
[404039703,1769777257976,-799.0,0.00041644,120]
[404039704,1769777258024,-1000.0,0.00041671,120]
[404039705,1769777258070,-1000.0,0.00041671,120]
[404039706,1769777258117,-1200.0,0.00041671,120]
[404039707,1769777258163,-2000.0,0.00041671,120]
[404039708,1769777258210,-171.71413,0.00041688,30]
[404039709,1769777258256,-2000.0,0.00041715,60]
[404039710,1769777258302,-154.5,0.00041721,120]
[404039711,1769777258351,-1321.4,0.00041793,120]
[404039712,1769777258403,-218.12,0.000418,60]
[404039713,1769777258450,-218.12,0.000418,120]
[404039714,1769777258498,-603.61365087,0.000418,120]
[404039715,1769777258544,-151.0,0.000418,120]
[404039716,1769777258592,-410.93,0.00041815,120]
[404039717,1769777258643,-154.5,0.00041821,120]
[404039718,1769777258692,-11560.3257266,0.00041875,30]
[404039719,1769777258741,-171.71413,0.00041888,30]
[404039720,1769777258788,-10000.0,0.000419,120]
[404039721,1769777258836,-1931.26299871,0.000419,120]
[404039722,1769777258887,-1931.26299871,0.000419,120]
[404039723,1769777258935,-1931.26299871,0.000419,120]
[404039724,1769777258985,-1931.26299871,0.000419,120]
[404039725,1769777259033,-1931.26299871,0.000419,120]
[404039726,1769777259081,-1931.26299871,0.000419,120]
[404039727,1769777259129,-906.24,0.00041902,120]
[404039728,1769777259176,-154.5,0.00041921,120]
[404039729,1769777259221,-4987.20765938,0.0004198,120]
[404039730,1769777259267,-231.23948509,0.00041999,120]
[404039731,1769777259313,-209.902564,0.00041999,120]
[404039732,1769777259364,-460.38809714,0.00042,120]
[404039733,1769777259412,-264.14733226,0.00042,120]
[404039734,1769777259461,-500.0,0.00042,120]
[404039735,1769777259507,-500.0,0.00042,120]
[404039736,1769777259558,-1000.0,0.00042,60]
[404039737,1769777259610,-1000.0,0.00042,120]
[404039738,1769777259661,-500.0,0.00042,120]
[404039739,1769777259711,-150.0,0.00042,120]
[404039740,1769777259759,-898.72,0.00042,120]
[404039741,1769777260033,-516.72233468,0.00042,80]
[404039742,1769777260084,-280.20122194,0.00042,120]
[404039743,1769777260135,-2053.32,0.00042,60]
[404039744,1769777260184,-164.60988585,0.00042,60]
[404039745,1769777260230,-169.71395402,0.00042,30]
[404039746,1769777260275,-609.2433859,0.00042,120]
[404039747,1769777260322,-23263.47,0.00042,120]
[404039748,1769777260373,-192.23581846,0.00042,60]
[404039749,1769777260430,-1000.0,0.00042,30]
[404039750,1769777260485,-1000.0,0.00042,120]
[404039751,1769777260540,-200.0,0.00042,120]
[404039752,1769777260601,-199.0,0.00042,30]
[404039753,1769777260664,-23219.17,0.00042,120]
[404039754,1769777260723,-253.0,0.00042,37]
[404039755,1769777260786,-1029.0,0.00042,30]
[404039756,1769777260840,-500.0,0.00042,120]
[404039757,1769777260897,-154.5,0.00042021,120]
[404039758,1769777260959,-187.798612,0.00042082,120]
[404039759,1769777261031,-154.5,0.00042121,120]
[404039760,1769777261085,-1000.0,0.0004215,30]
[404039761,1769777261136,-799.0,0.00042192,120]
[404039762,1769777261187,-153.0,0.000422,120]
[404039763,1769777261243,-500.0,0.000422,120]
[404039764,1769777261307,-154.5,0.00042221,120]
[404039765,1769777261363,-1102.0,0.00042236,30]
[404039766,1769777261425,-3681.0,0.00042238,30]
[404039767,1769777261473,-2000.0,0.00042263,60]
[404039768,1769777261520,-154.5,0.00042321,120]
[404039769,1769777261568,-412.5,0.000424,120]
[404039770,1769777261615,-151.0,0.000424,120]
[404039771,1769777261662,-186.16442144,0.000424,120]
[404039772,1769777261708,-788.6,0.000424,120]
[404039773,1769777261753,-503.94,0.000424,120]
[404039774,1769777261796,-154.5,0.00042421,120]
[404039775,1769777261840,-874.56,0.00042438,120]
[404039776,1769777261886,-500.0,0.00042465,120]
[404039777,1769777261932,-500.0,0.00042465,120]
[404039778,1769777261978,-1025.09,0.00042465,120]
[404039779,1769777262025,-1175.7544783,0.00042475,120]
[404039780,1769777262075,-329.56945066,0.0004248,120]
[404039781,1769777262124,-150.0,0.0004249,120]
[404039782,1769777262173,-253.69185516,0.000425,120]
[404039783,1769777262222,-250.0,0.000425,120]
[404039784,1769777262271,-568.0,0.000425,120]
[404039785,1769777262323,-166.2597,0.000425,120]
[404039786,1769777262375,-833.0,0.000425,120]
[404039787,1769777262428,-500.0,0.000425,120]
[404039788,1769777262479,-5148.22035227,0.000425,120]
[404039789,1769777262535,-336.96,0.000425,120]
[404039790,1769777262599,-154.61140304,0.00042521,120]
[404039791,1769777262653,-874.56,0.00042575,120]
[404039792,1769777262703,-500.0,0.00042602,120]
[404039793,1769777262753,-500.0,0.00042602,120]
[404039794,1769777262803,-9728.28936461,0.00042623,30]
[404039795,1769777262853,-3681.0,0.00042674,30]
[404039796,1769777262906,-386.59019083,0.000427,30]
[404039797,1769777262957,-874.56,0.00042712,120]
[404039798,1769777263011,-500.0,0.00042739,120]
[404039799,1769777263060,-799.0,0.0004274,120]
[404039800,1769777263106,-154.31,0.0004274,91]
[404039801,1769777263154,-60794.78024771,0.0004275,120]
[404039802,1769777263199,-293.135,0.0004276,30]
[404039803,1769777263249,-569.83542857,0.0004277,120]
[404039804,1769777263295,-210.04,0.00042784,30]
[404039805,1769777263340,-2000.0,0.00042811,60]
[404039806,1769777263389,-874.56,0.00042849,120]
[404039807,1769777263437,-1064.20814217,0.0004287,120]
[404039808,1769777263483,-500.0,0.00042876,120]
[404039809,1769777263530,-500.0,0.00042876,120]
[404039810,1769777263577,-500.0,0.00042876,120]
[404039811,1769777263627,-500.0,0.00042876,120]
[404039812,1769777263680,-500.0,0.00042876,120]
[404039813,1769777263729,-500.0,0.00042876,120]
[404039814,1769777263774,-583.63659147,0.00042876,120]
[404039815,1769777263821,-500.0,0.00042876,120]
[404039816,1769777263868,-500.0,0.00042876,120]
[404039817,1769777263915,-500.0,0.00042876,120]
[404039818,1769777263961,-500.0,0.00042876,120]
[404039819,1769777264009,-619.79083875,0.00042876,120]
[404039820,1769777264308,-199.0,0.00042876,120]
[404039821,1769777264358,-301.0,0.00042877,120]
[404039822,1769777264408,-1000.14190406,0.000429,120]
[404039823,1769777264455,-10000.0,0.000429,120]
[404039824,1769777264500,-300.0,0.00042904,90]
[404039825,1769777264547,-210.0,0.0004295,30]
[404039826,1769777264594,-300.0,0.00042959,90]
[404039827,1769777264643,-874.56,0.00042986,120]
[404039828,1769777264688,-752.10404416,0.00042998,30]
[404039829,1769777264735,-165.25005544,0.00043,30]
[404039830,1769777264780,-220.18,0.00043,120]
[404039831,1769777264826,-400.0,0.00043,120]
[404039832,1769777264875,-473.0,0.00043,120]
[404039833,1769777264921,-327.97406397,0.00043,120]
[404039834,1769777264967,-500.0,0.00043,120]
[404039835,1769777265015,-251.34477617,0.00043,120]
[404039836,1769777265060,-1045.72749192,0.00043,120]
[404039837,1769777265106,-1021.7988038,0.00043,120]
[404039838,1769777265154,-153.0,0.00043,120]
[404039839,1769777265200,-500.0,0.00043,120]
[404039840,1769777265246,-500.0,0.00043,120]
[404039841,1769777265292,-1000.0,0.00043,120]
[404039842,1769777265340,-150.0,0.00043,120]
[404039843,1769777265389,-225.0,0.00043,120]
[404039844,1769777265441,-151.0,0.00043,120]
[404039845,1769777265490,-635.77470568,0.00043,120]
[404039846,1769777265538,-6881.98,0.00043,30]
[404039847,1769777265586,-277.55,0.00043,33]
[404039848,1769777265635,-160.0,0.00043,120]
[404039849,1769777265683,-875.0,0.00043,120]
[404039850,1769777265731,-1000.0,0.00043,120]
[404039851,1769777265778,-3000.0,0.00043,120]
[404039852,1769777265822,-150.0,0.00043,120]
[404039853,1769777265870,-173.0,0.00043,30]
[404039854,1769777265918,-1297.0,0.00043,66]
[404039855,1769777265968,-173.0,0.00043,90]
[404039856,1769777266016,-253.0,0.00043,41]
[404039857,1769777266062,-1029.0,0.00043,30]
[404039858,1769777266107,-500.0,0.00043,120]
[404039859,1769777266152,-150.0,0.00043001,120]
[404039860,1769777266197,-185.55024154,0.00043001,120]
[404039861,1769777266241,-1449.6,0.00043013,120]
[404039862,1769777266285,-1449.6,0.00043013,120]
[404039863,1769777266331,-1449.6,0.00043013,120]
[404039864,1769777266379,-1449.6,0.00043013,120]
[404039865,1769777266428,-1449.6,0.00043013,120]
[404039866,1769777266479,-1449.6,0.00043013,120]
[404039867,1769777266526,-1449.6,0.00043013,120]
[404039868,1769777266574,-1449.6,0.00043013,120]
[404039869,1769777266623,-1449.6,0.00043013,120]
[404039870,1769777266672,-1449.6,0.00043013,120]
[404039871,1769777266722,-1449.6,0.00043013,120]
[404039872,1769777266770,-1449.6,0.00043013,120]
[404039873,1769777266818,-1449.6,0.00043013,120]
[404039874,1769777266865,-1449.6,0.00043013,120]
[404039875,1769777266911,-1449.6,0.00043013,120]
[404039876,1769777266956,-1449.6,0.00043013,120]
[404039877,1769777267000,-1449.6,0.00043013,120]
[404039878,1769777267047,-1449.6,0.00043013,120]
[404039879,1769777267094,-1449.6,0.00043013,120]
[404039880,1769777267141,-1449.6,0.00043013,120]
[404039881,1769777267189,-1449.6,0.00043013,120]
[404039882,1769777267238,-1449.6,0.00043013,120]
[404039883,1769777267287,-1449.6,0.00043013,120]
[404039884,1769777267336,-1449.65999687,0.00043013,120]
[404039885,1769777267388,-300.0,0.00043014,120]
[404039886,1769777267438,-300.0,0.00043068,120]
[404039887,1769777267486,-1879.06265803,0.000431,120]
[404039888,1769777267541,-5000000.0,0.000431,120]
[404039889,1769777267591,-849.96,0.000431,120]
[404039890,1769777267643,-3681.0,0.00043109,30]
[404039891,1769777267694,-874.56,0.00043123,120]
[404039892,1769777267743,-1672.94472531,0.0004313,30]
[404039893,1769777267791,-300.0,0.00043178,120]
[404039894,1769777267840,-409.0,0.00043178,120]
[404039895,1769777267888,-588.39633931,0.00043199,120]
[404039896,1769777267937,-284494.90964495,0.000432,30]
[404039897,1769777267987,-146258.39276165,0.000432,30]
[404039898,1769777268039,-979.0971,0.0004322,30]
[404039899,1769777268089,-823.79732562,0.00043248,30]
[404039900,1769777268411,-272.05,0.00043255,120]
[404039901,1769777268466,-874.56,0.0004326,120]
[404039902,1769777268522,-500.0,0.00043287,120]
[404039903,1769777268575,-500.0,0.00043287,120]
[404039904,1769777268631,-500.0,0.00043287,120]
[404039905,1769777268686,-500.0,0.00043287,120]
[404039906,1769777268742,-500.0,0.00043287,120]
[404039907,1769777268798,-500.0,0.00043287,120]
[404039908,1769777268853,-500.0,0.00043287,120]
[404039909,1769777268907,-500.0,0.00043287,120]
[404039910,1769777268962,-500.0,0.00043287,120]
[404039911,1769777269015,-500.0,0.00043287,120]
[404039912,1769777269071,-500.0,0.00043287,120]
[404039913,1769777269124,-500.0,0.00043287,120]
[404039914,1769777269176,-500.0,0.00043287,120]
[404039915,1769777269229,-500.0,0.00043287,120]
[404039916,1769777269280,-500.0,0.00043287,120]
[404039917,1769777269334,-500.0,0.00043287,120]
[404039918,1769777269387,-501.22758599,0.00043287,120]
[404039919,1769777269444,-151.0,0.00043287,60]
[404039920,1769777269499,-500.0,0.00043287,120]
[404039921,1769777269551,-500.0,0.00043287,120]
[404039922,1769777269603,-500.0,0.00043287,120]
[404039923,1769777269654,-500.0,0.00043287,120]
[404039924,1769777269703,-500.0,0.00043287,120]
[404039925,1769777269754,-500.0,0.00043287,120]
[404039926,1769777269803,-500.0,0.00043287,120]
[404039927,1769777269850,-500.0,0.00043287,120]
[404039928,1769777269897,-500.0,0.00043287,120]
[404039929,1769777269946,-500.0,0.00043287,120]
[404039930,1769777269995,-617.30420704,0.00043287,120]
[404039931,1769777270044,-504.5,0.00043287,120]
[404039932,1769777270092,-500.0,0.00043287,120]
[404039933,1769777270141,-500.0,0.00043287,120]
[404039934,1769777270190,-561.14,0.00043287,120]
[404039935,1769777270239,-561.14,0.00043287,120]
[404039936,1769777270288,-561.14,0.00043287,120]
[404039937,1769777270337,-561.14,0.00043287,120]
[404039938,1769777270387,-561.14,0.00043287,120]
[404039939,1769777270438,-561.14,0.00043287,120]
[404039940,1769777270489,-561.14,0.00043287,120]
[404039941,1769777270542,-561.14,0.00043287,120]
[404039942,1769777270593,-561.14,0.00043287,120]
[404039943,1769777270644,-561.14,0.00043287,120]
[404039944,1769777270698,-561.14,0.00043287,120]
[404039945,1769777270750,-561.14,0.00043287,120]
[404039946,1769777270799,-561.14,0.00043287,120]
[404039947,1769777270849,-561.14,0.00043287,120]
[404039948,1769777270898,-561.14,0.00043287,120]
[404039949,1769777270946,-561.14,0.00043287,120]
[404039950,1769777270996,-561.14,0.00043287,120]
[404039951,1769777271045,-561.14,0.00043287,120]
[404039952,1769777271093,-561.14,0.00043287,120]
[404039953,1769777271140,-561.14,0.00043287,120]
[404039954,1769777271187,-561.14,0.00043287,120]
[404039955,1769777271235,-561.14,0.00043287,120]
[404039956,1769777271283,-561.14,0.00043287,120]
[404039957,1769777271331,-561.32064862,0.00043287,120]
[404039958,1769777271381,-200.0,0.00043287,120]
[404039959,1769777271430,-200.0,0.00043287,120]
[404039960,1769777271480,-200.0,0.00043287,120]
[404039961,1769777271529,-200.0,0.00043287,120]
[404039962,1769777271581,-200.0,0.00043287,120]
[404039963,1769777271632,-200.0,0.00043287,120]
[404039964,1769777271685,-855.13,0.00043287,120]
[404039965,1769777271740,-2183.26484098,0.00043287,60]
[404039966,1769777271789,-500.0,0.00043287,120]
[404039967,1769777271838,-552.1036811,0.00043287,120]
[404039968,1769777271886,-543.22447357,0.00043287,120]
[404039969,1769777271933,-500.0,0.00043287,120]
[404039970,1769777271982,-500.0,0.00043287,120]
[404039971,1769777272031,-500.0,0.00043287,120]
[404039972,1769777272079,-500.0,0.00043287,120]
[404039973,1769777272125,-500.0,0.00043287,120]
[404039974,1769777272171,-500.0,0.00043287,120]
[404039975,1769777272216,-569.60703626,0.00043287,120]
[404039976,1769777272275,-500.0,0.00043287,120]
[404039977,1769777272325,-500.0,0.00043287,120]
[404039978,1769777272374,-500.0,0.00043287,120]
[404039979,1769777272423,-500.0,0.00043287,120]
[404039980,1769777272790,-500.0,0.00043287,120]
[404039981,1769777272841,-500.0,0.00043287,120]
[404039982,1769777272889,-500.0,0.00043287,120]
[404039983,1769777272941,-500.0,0.00043287,120]
[404039984,1769777272990,-500.0,0.00043287,120]
[404039985,1769777273044,-500.0,0.00043287,120]
[404039986,1769777273093,-500.0,0.00043287,120]
[404039987,1769777273143,-488.21093609,0.00043287,120]
[404039988,1769777273193,-547.79176765,0.00043287,120]
[404039989,1769777273248,-511.86406296,0.00043287,120]
[404039990,1769777273297,-500.0,0.00043287,120]
[404039991,1769777273347,-520.39827618,0.00043287,120]
[404039992,1769777273399,-500.0,0.00043287,120]
[404039993,1769777273452,-500.0,0.00043287,120]
[404039994,1769777273506,-500.0,0.00043287,120]
[404039995,1769777273559,-500.0,0.00043287,120]
[404039996,1769777273611,-500.0,0.00043287,120]
[404039997,1769777273668,-500.0,0.00043287,120]
[404039998,1769777273723,-500.0,0.00043287,120]
[404039999,1769777273777,-504.06490437,0.00043287,120]
[404040000,1769777273830,-500.0,0.00043287,120]
[404040001,1769777273883,-500.0,0.00043287,120]
[404040002,1769777273935,-500.0,0.00043287,120]
[404040003,1769777273994,-500.0,0.00043287,120]
[404040004,1769777274046,-500.0,0.00043287,120]
[404040005,1769777274099,-500.0,0.00043287,120]
[404040006,1769777274150,-536.70550004,0.00043287,120]
[404040007,1769777274201,-522.35820018,0.00043287,120]
[404040008,1769777274252,-500.0,0.00043287,120]
[404040009,1769777274303,-500.0,0.00043287,120]
[404040010,1769777274354,-500.0,0.00043287,120]
[404040011,1769777274410,-500.0,0.00043287,120]
[404040012,1769777274461,-500.0,0.00043287,120]
[404040013,1769777274512,-521.06780903,0.00043287,120]
[404040014,1769777274564,-500.0,0.00043287,120]
[404040015,1769777274617,-324.66499512,0.00043287,120]
[404040016,1769777274671,-500.0,0.00043287,120]
[404040017,1769777274729,-500.0,0.00043287,120]
[404040018,1769777274781,-544.81895522,0.00043287,120]
[404040019,1769777274833,-500.0,0.00043287,120]
[404040020,1769777274884,-500.0,0.00043287,120]
[404040021,1769777274935,-500.0,0.00043287,120]
[404040022,1769777274987,-511.06838653,0.00043287,120]
[404040023,1769777275037,-500.0,0.00043287,120]
[404040024,1769777275086,-500.0,0.00043287,120]
[404040025,1769777275138,-613.93206775,0.00043287,120]
[404040026,1769777275187,-500.0,0.00043287,120]
[404040027,1769777275236,-500.0,0.00043287,120]
[404040028,1769777275284,-500.0,0.00043287,120]
[404040029,1769777275333,-500.0,0.00043287,120]
[404040030,1769777275382,-500.0,0.00043287,120]
[404040031,1769777275436,-500.0,0.00043287,120]
[404040032,1769777275491,-500.0,0.00043287,120]
[404040033,1769777275541,-251.18664544,0.00043287,120]
[404040034,1769777275592,-500.0,0.00043287,120]
[404040035,1769777275642,-549.70047191,0.00043287,120]
[404040036,1769777275695,-536.62579121,0.00043287,120]
[404040037,1769777275747,-500.0,0.00043287,120]
[404040038,1769777275799,-500.0,0.00043287,120]
[404040039,1769777275855,-604.99387088,0.00043287,120]
[404040040,1769777275907,-500.0,0.00043287,120]
[404040041,1769777275962,-500.0,0.00043287,120]
[404040042,1769777276015,-500.0,0.00043287,120]
[404040043,1769777276068,-500.0,0.00043287,120]
[404040044,1769777276128,-500.0,0.00043287,120]
[404040045,1769777276188,-500.0,0.00043287,120]
[404040046,1769777276246,-500.0,0.00043287,120]
[404040047,1769777276313,-500.0,0.00043287,120]
[404040048,1769777276372,-500.0,0.00043287,120]
[404040049,1769777276427,-222.05828969,0.00043287,120]
[404040050,1769777276484,-500.0,0.00043287,120]
[404040051,1769777276541,-500.0,0.00043287,120]
[404040052,1769777276595,-500.0,0.00043287,120]
[404040053,1769777276649,-500.0,0.00043287,120]
[404040054,1769777276704,-500.0,0.00043287,120]
[404040055,1769777276761,-500.0,0.00043287,120]
[404040056,1769777276815,-500.0,0.00043287,120]
[404040057,1769777276867,-500.0,0.00043287,120]
[404040058,1769777276919,-500.0,0.00043287,120]
[404040059,1769777276971,-400.58481457,0.00043287,120]
[404040060,1769777277305,-500.0,0.00043287,120]
[404040061,1769777277360,-500.0,0.00043287,120]
[404040062,1769777277416,-500.0,0.00043287,120]
[404040063,1769777277468,-500.0,0.00043287,120]
[404040064,1769777277520,-500.0,0.00043287,120]
[404040065,1769777277573,-294.5998197,0.00043287,120]
[404040066,1769777277627,-500.0,0.00043287,120]
[404040067,1769777277682,-500.0,0.00043287,120]